Workbook

Sheet 省招
A1: 附件1
A2: 2023年德安县中小学教师招聘拟入闱体检人员名单（省招）
A3: 序号 | B3: 岗位代码 | C3: 学科 | D3: 岗位计划数 | E3: 姓名 | F3: 笔试准考证 | G3: 笔试 | K3: 面试 | M3: 总成绩
G4: 教育综合知识 | H4: 专业成绩 | I4: 成绩 | J4: 折算 | K4: 成绩 | L4: 折算 | M4: 得分 | N4: 排名
A5: 1 | B5: 400110204021 | C5: 初中-道德与法治 | D5: 1 | E5: 邹菁华 | F5: 153011101812,253011101812 | G5: 71.5 | H5: 108.5 | I5: 180.0 | J5: =I5*(50/250) -> 36.00 | K5: 87.08 | L5: =K5*(50/100) -> 43.54 | M5: =J5+L5 -> 79.54 | N5: 1
A6: 2 | B6: 400110205023 | C6: 初中-体育与健康 | D6: 1 | E6: 郭洋 | F6: 153040205913,253040205913 | G6: 80.5 | H6: 129.5 | I6: 210.0 | J6: =I6*(40/250) -> 33.60 | K6: 87.31 | L6: =K6*(60/100) -> 52.39 | M6: 85.99 | N6: 1
A7: 3 | B7: 400110208019 | C7: 初中-历史 | D7: 2 | E7: 宋康宁 | F7: 153012001101,253012001101 | G7: 70 | H7: 111 | I7: 181.0 | J7: 36.20 | K7: 91.56 | L7: 45.78 | M7: 81.98 | N7: 1
A8: 4 | B8: 400110208019 | C8: 初中-历史 | E8: 杜思敏 | F8: 153211200615,253211200615 | G8: 78 | H8: 111 | I8: 189.0 | J8: 37.80 | K8: 86.68 | L8: 43.34 | M8: 81.14 | N8: 2
A9: 5 | B9: 400110210017 | C9: 初中-化学 | D9: 2 | E9: 刘文馨 | F9: 153040106405,253040106405 | G9: 83.5 | H9: 133 | I9: 216.5 | J9: 43.30 | K9: 89.52 | L9: 44.76 | M9: 88.06 | N9: 1
A10: 6 | B10: 400110210017 | C10: 初中-化学 | E10: 周虹 | F10: 153040106402,253040106402 | G10: 88 | H10: 115.5 | I10: 203.5 | J10: 40.70 | K10: 86.38 | L10: 43.19 | M10: 83.89 | N10: 2
A11: 7 | B11: 400110212018 | C11: 初中-生物 | D11: 1 | E11: 陶嘉锋 | F11: 153012102729,253012102729 | G11: 81.5 | H11: 133 | I11: 214.5 | J11: 42.90 | K11: 90.08 | L11: 45.04 | M11: 87.94 | N11: 1
A12: 8 | B12: 400110211015 | C12: 初中-物理 | D12: 1 | E12: 余芹芹 | F12: 153040406907,253040406907 | G12: 85 | H12: 104 | I12: 189.0 | J12: 37.80 | K12: 89.06 | L12: 44.53 | M12: 82.33 | N12: 1
A13: 9 | B13: 400110301010 | C13: 高中-语文 | D13: 3 | E13: 张文攀 | F13: 153040305515,253040305515 | G13: 91.5 | H13: 98 | I13: 189.5 | J13: 37.90 | K13: 88.81 | L13: 44.41 | M13: 82.31 | N13: 1
A14: 10 | B14: 400110301010 | C14: 高中-语文 | E14: 查启慧 | F14: 153040305707,253040305707 | G14: 76.5 | H14: 90.5 | I14: 167.0 | J14: 33.40 | K14: 92.53 | L14: 46.27 | M14: 79.67 | N14: 2
A15: 11 | B15: 400110301010 | C15: 高中-语文 | E15: 袁宇寰 | F15: 153040305216,253040305216 | G15: 60 | H15: 101 | I15: 161.0 | J15: 32.20 | K15: 91.58 | L15: 45.79 | M15: 77.99 | N15: 3
A16: 12 | B16: 400110302011 | C16: 高中-数学（限高校应届毕业生） | D16: 2 | E16: 姜启慧 | F16: 153040306304,253040306304 | G16: 87 | H16: 108.5 | I16: 195.5 | J16: =I16*(50/250) -> 39.10 | K16: 89.54 | L16: =K16*(50/100) -> 44.77 | M16: =J16+L16 -> 83.87 | N16: 1
A17: 13 | B17: 400110302011 | C17: 高中-数学（限高校应届毕业生） | E17: 张茜 | F17: 153012202926,253012202926 | G17: 74 | H17: 82 | I17: 156.0 | J17: 31.20 | K17: 90.38 | L17: 45.19 | M17: 76.39 | N17: 2
A18: 14 | B18: 400110302012 | C18: 高中-数学（职高） | D18: 1 | E18: 熊芳 | F18: 153012203202,253012203202 | G18: 84 | H18: 102.5 | I18: 186.5 | J18: 37.30 | K18: 89.56 | L18: 44.78 | M18: 82.08 | N18: 1
A19: 15 | B19: 400110303013 | C19: 高中-英语 | D19: 2 | E19: 赵弯弯 | F19: 153040307321,253040307321 | G19: 66 | H19: 94 | I19: 160.0 | J19: 32.00 | K19: 91.66 | L19: 45.83 | M19: 77.83 | N19: 1
A20: 16 | B20: 400110303013 | C20: 高中-英语 | E20: 程祥 | F20: 153221605115,253221605115 | G20: 60 | H20: 79 | I20: 139.0 | J20: 27.80 | K20: 89.11 | L20: 44.56 | M20: 72.36 | N20: 2
A21: 17 | B21: 400110304020 | C21: 高中-思想政治 | D21: 1 | E21: 李莉 | F21: 153040307701,253040307701 | G21: 79.5 | H21: 110.5 | I21: 190.0 | J21: 38.00 | K21: 88.36 | L21: 44.18 | M21: 82.18 | N21: 1
A22: 18 | B22: 400110305022 | C22: 高中-体育与健康 | D22: 2 | E22: 乐金婷 | F22: 153040308025,253040308025 | G22: 70 | H22: 99 | I22: 169.0 | J22: =I22*(40/250) -> 27.04 | K22: 86.51 | L22: =K22*(60/100) -> 51.91 | M22: =J22+L22 -> 78.95 | N22: 1
A23: 19 | B23: 400110305022 | C23: 高中-体育与健康 | E23: 孙鑫龙 | F23: 153012303019,253012303019 | G23: 75 | H23: 98.5 | I23: 173.5 | J23: =I23*(40/250) -> 27.76 | K23: 84.53 | L23: =K23*(60/100) -> 50.72 | M23: 78.48 | N23: 2
A24: 20 | B24: 400110310016 | C24: 高中-化学 | D24: 1 | E24: 朱合敬 | F24: 153010903412,253010903412 | G24: 81.5 | H24: 118 | I24: 199.5 | J24: =I24*(50/250) -> 39.90 | K24: 86.3 | L24: =K24*(50/100) -> 43.15 | M24: 83.05 | N24: 1
A25: 21 | B25: 400110311014 | C25: 高中-物理 | D25: 1 | E25: 张翔 | F25: 153040408712,253040408712 | G25: 39.5 | H25: 62 | I25: 101.5 | J25: 20.30 | K25: 89.34 | L25: 44.67 | M25: 64.97 | N25: 1
A26: 2023年德安县中小学教师招聘拟入闱体检人员名单（特岗）
A27: 序号 | B27: 岗位代码 | C27: 学科 | D27: 岗位计划数 | E27: 姓名 | F27: 笔试准考证 | G27: 笔试 | K27: 面试 | M27: 总成绩
G28: 教育综合知识 | H28: 专业成绩 | I28: 成绩 | J28: 折算 | K28: 成绩 | L28: 折算 | M28: 得分 | N28: 排名
A29: 1 | B29: 360426204001 | C29: 初中道德与法治 | D29: 1 | E29: 周昕 | F29: 154040603118 | G29: 70 | H29: 124 | I29: 194 | J29: 38.80 | K29: 90.32 | L29: 45.16 | M29: =J29+L29 -> 83.96 | N29: 1
A30: 2 | B30: 360426209001 | C30: 初中地理 | D30: 1 | E30: 杨洁 | F30: 154012406821 | G30: 81 | H30: 133.5 | I30: 214.5 | J30: 42.90 | K30: 89.24 | L30: 44.62 | M30: 87.52 | N30: 1
A31: 3 | B31: 360426210003 | C31: 初中化学 | D31: 3 | E31: 乐丹宁 | F31: 154040803807 | G31: 86 | H31: 103.5 | I31: 189.5 | J31: 37.90 | K31: 91.1 | L31: 45.55 | M31: 83.45 | N31: 1
A32: 4 | B32: 360426210003 | C32: 初中化学 | E32: 谈婷婷 | F32: 154040803709 | G32: 69.5 | H32: 110.5 | I32: 180 | J32: 36.00 | K32: 89.82 | L32: 44.91 | M32: 80.91 | N32: 2
A33: 5 | B33: 360426210003 | C33: 初中化学 | E33: 龚婕鸿 | F33: 154012803410 | G33: 87 | H33: 96 | I33: 183 | J33: 36.60 | K33: 85.34 | L33: 42.67 | M33: 79.27 | N33: 3
A34: 6 | B34: 360426208001 | C34: 初中历史 | D34: 1 | E34: 余策民 | F34: 154040604429 | G34: 50.5 | H34: 106.5 | I34: 157 | J34: 31.40 | K34: 88.48 | L34: 44.24 | M34: 75.64 | N34: 1
A35: 7 | B35: 360426212001 | C35: 初中生物 | D35: 1 | E35: 刘梅芳 | F35: 154040803904 | G35: 85 | H35: 129.5 | I35: 214.5 | J35: 42.90 | K35: 88.82 | L35: 44.41 | M35: 87.31 | N35: 1
A36: 8 | B36: 360426202002 | C36: 初中数学 | D36: 2 | E36: 邱磊 | F36: 154040802921 | G36: 80 | H36: 92.5 | I36: 172.5 | J36: 34.50 | K36: 87.32 | L36: 43.66 | M36: 78.16 | N36: 1
A37: 9 | B37: 360426202002 | C37: 初中数学 | E37: 梅光晴 | F37: 154040803026 | G37: 78.5 | H37: 86.5 | I37: 165 | J37: 33.00 | K37: 86.92 | L37: 43.46 | M37: 76.46 | N37: 2
A38: 10 | B38: 360426205001 | C38: 初中体育与健康 | D38: 1 | E38: 肖子怡 | F38: 154211002820 | G38: 57.5 | H38: 100.5 | I38: 158 | J38: =I38*(40/250) -> 25.28 | K38: 84.65 | L38: =K38*(60/100) -> 50.79 | M38: 76.07 | N38: 1
A39: 11 | B39: 360426211003 | C39: 初中物理 | D39: 3 | E39: 郑洪洪 | F39: 154211000729 | G39: 70.5 | H39: 117.5 | I39: 188 | J39: =I39*(50/250) -> 37.60 | K39: 90.94 | L39: =K39*(50/100) -> 45.47 | M39: 83.07 | N39: 1
A40: 12 | B40: 360426211003 | C40: 初中物理 | E40: 程振宇 | F40: 154040604618 | G40: 52 | H40: 109 | I40: 161 | J40: 32.20 | K40: 88.74 | L40: 44.37 | M40: 76.57 | N40: 2
A41: 13 | B41: 360426211003 | C41: 初中物理 | E41: 丁靓 | F41: 154040604605 | G41: 50.5 | H41: 78.5 | I41: 129 | J41: 25.80 | K41: 89.24 | L41: 44.62 | M41: 70.42 | N41: 3
A42: 14 | B42: 360426203002 | C42: 初中英语 | D42: 2 | E42: 邹秀依 | F42: 154040602919 | G42: 85.5 | H42: 111 | I42: 196.5 | J42: 39.30 | K42: 90.81 | L42: 45.41 | M42: 84.71 | N42: 1
A43: 15 | B43: 360426203002 | C43: 初中英语 | E43: 郭凌宇 | F43: 154012805203 | G43: 83.5 | H43: 101 | I43: 184.5 | J43: 36.90 | K43: 92.54 | L43: 46.27 | M43: 83.17 | N43: 2
A44: 16 | B44: 360426201002 | C44: 初中语文 | D44: 2 | E44: 查启琪 | F44: 154050314702 | G44: 81.5 | H44: 105 | I44: 186.5 | J44: 37.30 | K44: 89.97 | L44: 44.99 | M44: 82.29 | N44: 1
A45: 17 | B45: 360426201002 | C45: 初中语文 | E45: 李文君 | F45: 154040602015 | G45: 81 | H45: 98 | I45: 179 | J45: 35.80 | K45: 91.69 | L45: 45.85 | M45: 81.65 | N45: 2
A46: 18 | B46: 360426102001 | C46: 小学数学 | D46: 1 | E46: 陶云兰 | F46: 154012201426 | G46: 75 | H46: 105.5 | I46: 180.5 | J46: 36.10 | K46: 89.64 | L46: 44.82 | M46: 80.92 | N46: 1
A47: 19 | B47: 360426103001 | C47: 小学英语 | D47: 1 | E47: 曹彩雯 | F47: 154040600317 | G47: 77.5 | H47: 109.5 | I47: 187 | J47: 37.40 | K47: 91.59 | L47: 45.80 | M47: 83.20 | N47: 1
A48: 20 | B48: 360426101001 | C48: 小学语文 | D48: 1 | E48: 熊康洁 | F48: 154040701903 | G48: 90 | H48: 106 | I48: 196 | J48: 39.20 | K48: 91.37 | L48: 45.69 | M48: 84.89 | N48: 1
